{"text_format":"2","workbook":"xlsx","n_sheets":4,"sheets":["PFS","SBP1_Descrição Subpro","SUBP2_Valor%","CRO1_Pro-Mes"],"not_rendered":{"charts":0,"images":0,"macros":0,"external_links":1,"defined_names":623,"comments":0,"pivot_tables":0},"unopened":[],"bounds":{"document_bytes":16777216,"sheet_cells":100000,"run_cost":"one","rows_first":2000,"rows_last":500,"rows_between":2000,"halvings":0,"cell_chars":16384,"cell_head_chars":4096},"cells_cut":0,"cells_raw":0,"read":"whole","date_system":"1900"}

{"sheet":"PFS","index":0,"n_rows":21,"n_cols":7,"rows_kept":21,"cut":false,"hidden":false,"merged":[[0,0,1,5],[20,0,20,6],[18,0,18,6],[19,0,19,6],[15,0,15,4],[15,5,15,6],[16,0,16,6],[17,0,17,6],[5,0,5,3],[5,4,5,5],[2,0,2,6],[3,0,3,6],[4,0,4,3],[4,4,4,5]]}
["PROPOSTA FINANCEIRA DO SERVIÇO",{"$nulls":5},"CODIGO:"]
[{"$nulls":6},"PFS"]
["NOME DA CONSULTORA:"]
[]
["PROJETO:",null,null,null,"CONTRATANTE:",null,"BASE: JUN/2023"]
["EXECUÇÃO DAS ETAPAS INICIAIS DE IMPLANTAÇÃO DOS PLANOS DE AÇÃO DE EMERGÊNCIA (PAE) DE BARRAGENS LOCALIZADAS NA ÁREA DE ATUAÇÃO DA CODEVASF.",null,null,null,"CODEVASF (SEDE)",null,"Pesquisa de Preço de Mercado: MAIO/2023"]
["Base","Cod1","PRODUTO","Uni","Qde","PU","PT"]
["Preço Codevasf","I1","Barragem Bico da Pedra","Uni",1,null,{"$f":"ROUND(E8*F8,2)","v":0}]
["Preço Codevasf","I2","Barragem Boacica","Uni",1,null,0]
["Preço Codevasf","I3","Barragem Ceraíma","Uni",1,null,0]
["Preço Codevasf","I4","Barragem Cova da Mandioca","Uni",1,null,0]
["Preço Codevasf","I5","Barragem Estreito","Uni",1,null,0]
["Preço Codevasf","I6","Barragem Mirorós","Uni",1,null,0]
["Preço Codevasf","I7","Barragem Poço do Magro","Uni",1,null,0]
["Preço Codevasf","I8","Barragem Zabumbão","Uni",1,null,0]
["TOTAL DA PROPOSTA",{"$nulls":4},{"$f":"SUM(G8:G15)","v":0}]
["OBSERVAÇÃO:"]
["Uni - unidade de medição do insumo;"]
["Qde - Quantidade do Insumo (não pode ocorrer alteração pela Licitante)"]
["PU - Preço Unitário do Insumo (incluído encargos, taxas e impostos)"]
["PT - Preço Total do Insumo (incluído encargos, taxas e impostos)"]

{"sheet":"SBP1_Descrição Subpro","index":1,"n_rows":27,"n_cols":11,"rows_kept":27,"cut":false,"hidden":false,"merged":[[23,3,23,10],[14,3,14,10],[15,3,15,10],[16,3,16,10],[17,3,17,10],[18,3,18,10],[19,3,19,10],[20,1,20,2],[21,1,21,2],[20,3,20,10],[21,3,21,10],[22,3,22,10],[25,0,25,10],[26,0,26,10],[27,0,27,10],[28,0,28,10],[6,1,6,2],[7,1,7,2],[8,1,8,2],[9,1,9,2],[10,1,10,2],[11,1,11,2],[22,1,22,2],[23,1,23,2],[6,3,6,10],[7,3,7,10],[8,3,8,10],[9,3,9,10],[5,0,5,4],[5,5,5,8],[5,9,5,10],[24,0,24,10],[12,1,12,2],[13,1,13,2],[14,1,14,2],[15,1,15,2],[10,3,10,10],[11,3,11,10],[12,3,12,10],[13,3,13,10],[16,1,16,2],[17,1,17,2],[18,1,18,2],[19,1,19,2],[4,0,4,4],[4,5,4,8],[4,9,4,10],[0,0,1,8],[0,9,0,10],[1,9,1,10],[2,0,2,10],[3,0,3,10]]}
["DESCRIÇÃO DOS SUBPRODUTOS",{"$nulls":8},"CODIGO:"]
[{"$nulls":9},"SBP1"]
["NOME DA CONSULTORA:"]
[]
["PROJETO:",{"$nulls":4},"CONTRATANTE:",null,null,null,"BASE: JUN/2023"]
["EXECUÇÃO DAS ETAPAS INICIAIS DE IMPLANTAÇÃO DOS PLANOS DE AÇÃO DE EMERGÊNCIA (PAE) DE BARRAGENS LOCALIZADAS NA ÁREA DE ATUAÇÃO DA CODEVASF.",{"$nulls":4},"CODEVASF (SEDE)",null,null,null,"Pesquisa de Preço de Mercado: MAIO/2023"]
["Cod1","Cod2",null,"SUBPRODUTO"]
["R1","Relatório 1",null,"Plano de trabalho com planejamento estratégico do desenvolvimento da implantação do PAE e atualização do PAE conforme legislação vigente","Plano de trabalho com planejamento estratégico do desenvolvimento da implantação do PAE e atualização do PAE conforme legislação vigente","Plano de trabalho com planejamento estratégico do desenvolvimento da implantação do PAE e atualização do PAE conforme legislação vigente","Plano de trabalho com planejamento estratégico do desenvolvimento da implantação do PAE e atualização do PAE conforme legislação vigente","Plano de trabalho com planejamento estratégico do desenvolvimento da implantação do PAE e atualização do PAE conforme legislação vigente","Plano de trabalho com planejamento estratégico do desenvolvimento da implantação do PAE e atualização do PAE conforme legislação vigente","Plano de trabalho com planejamento estratégico do desenvolvimento da implantação do PAE e atualização do PAE conforme legislação vigente","Plano de trabalho com planejamento estratégico do desenvolvimento da implantação do PAE e atualização do PAE conforme legislação vigente"]
["R2","Relatório 2",null,"Reuniões/oficinas com entidades associadas à implantação do PAE e integração PAE - Plancon","Reuniões/oficinas com entidades associadas à implantação do PAE e integração PAE - Plancon","Reuniões/oficinas com entidades associadas à implantação do PAE e integração PAE - Plancon","Reuniões/oficinas com entidades associadas à implantação do PAE e integração PAE - Plancon","Reuniões/oficinas com entidades associadas à implantação do PAE e integração PAE - Plancon","Reuniões/oficinas com entidades associadas à implantação do PAE e integração PAE - Plancon","Reuniões/oficinas com entidades associadas à implantação do PAE e integração PAE - Plancon","Reuniões/oficinas com entidades associadas à implantação do PAE e integração PAE - Plancon"]
["R3","Relatório 3",null,"Plano de Comunicação","Plano de Comunicação","Plano de Comunicação","Plano de Comunicação","Plano de Comunicação","Plano de Comunicação","Plano de Comunicação","Plano de Comunicação"]
["R4","Relatório 4",null,"Plano de monitoramento associado aos níveis emergenciais e condições da barragem","Plano de monitoramento associado aos níveis emergenciais e condições da barragem","Plano de monitoramento associado aos níveis emergenciais e condições da barragem","Plano de monitoramento associado aos níveis emergenciais e condições da barragem","Plano de monitoramento associado aos níveis emergenciais e condições da barragem","Plano de monitoramento associado aos níveis emergenciais e condições da barragem","Plano de monitoramento associado aos níveis emergenciais e condições da barragem","Plano de monitoramento associado aos níveis emergenciais e condições da barragem"]
["R5","Relatório 5",null,"Plano de evacuação da ZAS e resgate de pessoas, incluindo projeto de sinalização, dimensionamento dos pontos de encontro, rotas de fuga","Plano de evacuação da ZAS e resgate de pessoas, incluindo projeto de sinalização, dimensionamento dos pontos de encontro, rotas de fuga","Plano de evacuação da ZAS e resgate de pessoas, incluindo projeto de sinalização, dimensionamento dos pontos de encontro, rotas de fuga","Plano de evacuação da ZAS e resgate de pessoas, incluindo projeto de sinalização, dimensionamento dos pontos de encontro, rotas de fuga","Plano de evacuação da ZAS e resgate de pessoas, incluindo projeto de sinalização, dimensionamento dos pontos de encontro, rotas de fuga","Plano de evacuação da ZAS e resgate de pessoas, incluindo projeto de sinalização, dimensionamento dos pontos de encontro, rotas de fuga","Plano de evacuação da ZAS e resgate de pessoas, incluindo projeto de sinalização, dimensionamento dos pontos de encontro, rotas de fuga","Plano de evacuação da ZAS e resgate de pessoas, incluindo projeto de sinalização, dimensionamento dos pontos de encontro, rotas de fuga"]
["R6","Relatório 6",null,"Plano de treinamento e divulgação do PAE na ZAS","Plano de treinamento e divulgação do PAE na ZAS","Plano de treinamento e divulgação do PAE na ZAS","Plano de treinamento e divulgação do PAE na ZAS","Plano de treinamento e divulgação do PAE na ZAS","Plano de treinamento e divulgação do PAE na ZAS","Plano de treinamento e divulgação do PAE na ZAS","Plano de treinamento e divulgação do PAE na ZAS"]
["R7","Relatório 7",null,"Plano de resgate de animais","Plano de resgate de animais","Plano de resgate de animais","Plano de resgate de animais","Plano de resgate de animais","Plano de resgate de animais","Plano de resgate de animais","Plano de resgate de animais"]
["R8","Relatório 8",null,"Plano de mitigação de impactos ambientais","Plano de mitigação de impactos ambientais","Plano de mitigação de impactos ambientais","Plano de mitigação de impactos ambientais","Plano de mitigação de impactos ambientais","Plano de mitigação de impactos ambientais","Plano de mitigação de impactos ambientais","Plano de mitigação de impactos ambientais"]
["R9","Relatório 9",null,"Plano de salvaguarda de patrimônios históricos e culturais","Plano de salvaguarda de patrimônios históricos e culturais","Plano de salvaguarda de patrimônios históricos e culturais","Plano de salvaguarda de patrimônios históricos e culturais","Plano de salvaguarda de patrimônios históricos e culturais","Plano de salvaguarda de patrimônios históricos e culturais","Plano de salvaguarda de patrimônios históricos e culturais","Plano de salvaguarda de patrimônios históricos e culturais"]
["R10","Relatório 10",null,"Plano de abastecimento","Plano de abastecimento","Plano de abastecimento","Plano de abastecimento","Plano de abastecimento","Plano de abastecimento","Plano de abastecimento","Plano de abastecimento"]
["R11","Relatório 11",null,"Projeto de implantação e operação do sistema de alerta/alarme, aprovado pelo Grupo de Integração PAE - Plancon","Projeto de implantação e operação do sistema de alerta/alarme, aprovado pelo Grupo de Integração PAE - Plancon","Projeto de implantação e operação do sistema de alerta/alarme, aprovado pelo Grupo de Integração PAE - Plancon","Projeto de implantação e operação do sistema de alerta/alarme, aprovado pelo Grupo de Integração PAE - Plancon","Projeto de implantação e operação do sistema de alerta/alarme, aprovado pelo Grupo de Integração PAE - Plancon","Projeto de implantação e operação do sistema de alerta/alarme, aprovado pelo Grupo de Integração PAE - Plancon","Projeto de implantação e operação do sistema de alerta/alarme, aprovado pelo Grupo de Integração PAE - Plancon","Projeto de implantação e operação do sistema de alerta/alarme, aprovado pelo Grupo de Integração PAE - Plancon"]
["R12","Relatório 12",null,"Levantamento cadastral (pessoas e animais) e inventário de estruturas na área da ZAS aprovada pelo Grupo de Integração PAE-Plancon. ","Levantamento cadastral (pessoas e animais) e inventário de estruturas na área da ZAS aprovada pelo Grupo de Integração PAE-Plancon. ","Levantamento cadastral (pessoas e animais) e inventário de estruturas na área da ZAS aprovada pelo Grupo de Integração PAE-Plancon. ","Levantamento cadastral (pessoas e animais) e inventário de estruturas na área da ZAS aprovada pelo Grupo de Integração PAE-Plancon. ","Levantamento cadastral (pessoas e animais) e inventário de estruturas na área da ZAS aprovada pelo Grupo de Integração PAE-Plancon. ","Levantamento cadastral (pessoas e animais) e inventário de estruturas na área da ZAS aprovada pelo Grupo de Integração PAE-Plancon. ","Levantamento cadastral (pessoas e animais) e inventário de estruturas na área da ZAS aprovada pelo Grupo de Integração PAE-Plancon. ","Levantamento cadastral (pessoas e animais) e inventário de estruturas na área da ZAS aprovada pelo Grupo de Integração PAE-Plancon. "]
["R13","Relatório 13",null,"Mapas de inundação e rotas de fuga após levantamento cadastral e inventário de estruturas","Mapas de inundação e rotas de fuga após levantamento cadastral e inventário de estruturas","Mapas de inundação e rotas de fuga após levantamento cadastral e inventário de estruturas","Mapas de inundação e rotas de fuga após levantamento cadastral e inventário de estruturas","Mapas de inundação e rotas de fuga após levantamento cadastral e inventário de estruturas","Mapas de inundação e rotas de fuga após levantamento cadastral e inventário de estruturas","Mapas de inundação e rotas de fuga após levantamento cadastral e inventário de estruturas","Mapas de inundação e rotas de fuga após levantamento cadastral e inventário de estruturas"]
["R14","Relatório 14",null,"Treinamento interno do PAE, incluindo entidades associadas à implantação do PAE e integração PAE - Plancon","Treinamento interno do PAE, incluindo entidades associadas à implantação do PAE e integração PAE - Plancon","Treinamento interno do PAE, incluindo entidades associadas à implantação do PAE e integração PAE - Plancon","Treinamento interno do PAE, incluindo entidades associadas à implantação do PAE e integração PAE - Plancon","Treinamento interno do PAE, incluindo entidades associadas à implantação do PAE e integração PAE - Plancon","Treinamento interno do PAE, incluindo entidades associadas à implantação do PAE e integração PAE - Plancon","Treinamento interno do PAE, incluindo entidades associadas à implantação do PAE e integração PAE - Plancon","Treinamento interno do PAE, incluindo entidades associadas à implantação do PAE e integração PAE - Plancon"]
["R15","Relatório 15",null,"Treinamento para coordenador do PAE","Treinamento para coordenador do PAE","Treinamento para coordenador do PAE","Treinamento para coordenador do PAE","Treinamento para coordenador do PAE","Treinamento para coordenador do PAE","Treinamento para coordenador do PAE","Treinamento para coordenador do PAE"]
["R16","Relatório 16",null,"Exercício de simulado interno de evacuação","Exercício de simulado interno de evacuação","Exercício de simulado interno de evacuação","Exercício de simulado interno de evacuação","Exercício de simulado interno de evacuação","Exercício de simulado interno de evacuação","Exercício de simulado interno de evacuação","Exercício de simulado interno de evacuação"]
["R17","Relatório 17",null,"Exercício de simulado externo de evacuação com a população, incluindo a prévia execução do plano de comunicação, a produção de material gráfico e a divulgação por outros meios de comunicação","Exercício de simulado externo de evacuação com a população, incluindo a prévia execução do plano de comunicação, a produção de material gráfico e a divulgação por outros meios de comunicação","Exercício de simulado externo de evacuação com a população, incluindo a prévia execução do plano de comunicação, a produção de material gráfico e a divulgação por outros meios de comunicação","Exercício de simulado externo de evacuação com a população, incluindo a prévia execução do plano de comunicação, a produção de material gráfico e a divulgação por outros meios de comunicação","Exercício de simulado externo de evacuação com a população, incluindo a prévia execução do plano de comunicação, a produção de material gráfico e a divulgação por outros meios de comunicação","Exercício de simulado externo de evacuação com a população, incluindo a prévia execução do plano de comunicação, a produção de material gráfico e a divulgação por outros meios de comunicação","Exercício de simulado externo de evacuação com a população, incluindo a prévia execução do plano de comunicação, a produção de material gráfico e a divulgação por outros meios de comunicação","Exercício de simulado externo de evacuação com a população, incluindo a prévia execução do plano de comunicação, a produção de material gráfico e a divulgação por outros meios de comunicação"]
["OBSERVAÇÃO:"]
["O valor de cada relatório está definido em percentual do valor dos produtos da PFS, conforme consta na planilha SBP2"]
["O pagamento de cada subproduto será mediante a entrega dos relatório, aprovação e atesto da fiscalização do contrato"]

{"sheet":"SUBP2_Valor%","index":2,"n_rows":19,"n_cols":23,"rows_kept":19,"cut":false,"hidden":false,"merged":[[0,0,1,5],[12,0,13,0],[12,1,13,1],[14,0,14,22]]}
["VALOR PERCENTUAL (%) DOS SUBPRODUTOS DE CADA PRODUTO",{"$nulls":5},"CODIGO:"]
[{"$nulls":6},"SUBP2"]
["Cod.","PRODUTO","Uni","Qde","PU","Prazo de execução","R1","R2","R3","R4","R5","R6","R7","R8","R9","R10","R11","R12","R13","R14","R15","R16","R17"]
[{"$nulls":5},"Meses"]
["I1",{"$f":"PFS!C8","v":"Barragem Bico da Pedra"},"Uni",1,{"$f":"PFS!F8","v":0},15,2.5987525987525989E-2,1.7325017325017324E-2,1.386001386001386E-2,1.386001386001386E-2,1.7325017325017324E-2,1.7325017325017324E-2,1.7325017325017324E-2,1.7325017325017324E-2,1.7325017325017324E-2,1.7325017325017324E-2,5.1975051975051978E-2,0.3615038115038115,1.7325017325017324E-2,3.4650034650034647E-2,3.4650034650034647E-2,2.5987525987525989E-2,0.29892584892584895]
["I2",{"$f":"PFS!C9","v":"Barragem Boacica"},"Uni",1,{"$f":"PFS!F9","v":0},15,8.5714285714285715E-2,5.7142857142857141E-2,2.8571428571428571E-2,2.8571428571428571E-2,2.8571428571428571E-2,2.8571428571428571E-2,2.8571428571428571E-2,2.8571428571428571E-2,2.8571428571428571E-2,2.8571428571428571E-2,8.5714285714285715E-2,0.17142857142857143,2.8571428571428571E-2,5.7142857142857141E-2,5.7142857142857141E-2,8.5714285714285715E-2,0.14285714285714285]
["I3",{"$f":"PFS!C10","v":"Barragem Ceraíma"},"Uni",1,{"$f":"PFS!F10","v":0},15,8.0213903743315509E-2,6.4171122994652413E-2,2.6737967914438502E-2,2.6737967914438502E-2,2.6737967914438502E-2,2.6737967914438502E-2,2.6737967914438502E-2,2.6737967914438502E-2,2.6737967914438502E-2,2.6737967914438502E-2,8.0213903743315509E-2,0.21390374331550802,2.6737967914438502E-2,5.3475935828877004E-2,5.3475935828877004E-2,8.0213903743315509E-2,0.13368983957219252]
["I4",{"$f":"PFS!C11","v":"Barragem Cova da Mandioca"},"Uni",1,{"$f":"PFS!F11","v":0},15,5.7251908396946563E-2,4.5801526717557252E-2,1.9083969465648856E-2,1.9083969465648856E-2,1.9083969465648856E-2,1.9083969465648856E-2,1.9083969465648856E-2,1.9083969465648856E-2,1.9083969465648856E-2,1.9083969465648856E-2,5.7251908396946563E-2,0.22900763358778625,1.9083969465648856E-2,3.8167938931297711E-2,3.8167938931297711E-2,5.7251908396946563E-2,0.30534351145038169]
["I5",{"$f":"PFS!C12","v":"Barragem Estreito"},"Uni",1,{"$f":"PFS!F12","v":0},15,8.5714285714285715E-2,5.7142857142857141E-2,2.8571428571428571E-2,2.8571428571428571E-2,2.8571428571428571E-2,2.8571428571428571E-2,2.8571428571428571E-2,2.8571428571428571E-2,2.8571428571428571E-2,2.8571428571428571E-2,8.5714285714285715E-2,0.17142857142857143,2.8571428571428571E-2,5.7142857142857141E-2,5.7142857142857141E-2,8.5714285714285715E-2,0.14285714285714285]
["I6",{"$f":"PFS!C13","v":"Barragem Mirorós"},"Uni",1,{"$f":"PFS!F13","v":0},15,8.2417582417582416E-2,6.5934065934065936E-2,2.7472527472527472E-2,2.7472527472527472E-2,2.7472527472527472E-2,2.7472527472527472E-2,2.7472527472527472E-2,2.7472527472527472E-2,2.7472527472527472E-2,2.7472527472527472E-2,8.2417582417582416E-2,0.19230769230769232,2.7472527472527472E-2,5.4945054945054944E-2,5.4945054945054944E-2,8.2417582417582416E-2,0.13736263736263737]
["I7",{"$f":"PFS!C14","v":"Barragem Poço do Magro"},"Uni",1,{"$f":"PFS!F14","v":0},15,6.4655172413793108E-2,5.1724137931034482E-2,2.1551724137931036E-2,2.1551724137931036E-2,2.1551724137931036E-2,2.1551724137931036E-2,2.1551724137931036E-2,2.1551724137931036E-2,2.1551724137931036E-2,2.1551724137931036E-2,6.4655172413793108E-2,0.21551724137931033,2.1551724137931036E-2,4.3103448275862072E-2,4.3103448275862072E-2,6.4655172413793108E-2,0.25862068965517243]
["I8",{"$f":"PFS!C15","v":"Barragem Zabumbão"},"Uni",1,{"$f":"PFS!F15","v":0},15,4.261363636363636E-2,3.4090909090909088E-2,1.4204545454545454E-2,1.4204545454545454E-2,1.4204545454545454E-2,1.4204545454545454E-2,1.4204545454545454E-2,1.4204545454545454E-2,1.4204545454545454E-2,1.4204545454545454E-2,4.261363636363636E-2,0.25568181818181818,1.4204545454545454E-2,2.8409090909090908E-2,2.8409090909090908E-2,4.261363636363636E-2,0.39772727272727271]
["TOTAL","VALOR TOTAL POR SUBPRODUTO","R$",{"$f":"SUM(G13:W13)","v":0},null,null,{"$f":"$E$12*G12+$E$11*G11+$E$10*G10+$E$9*G9+$E$8*G8+$E$7*G7+$E$6*G6+$E$5*G5","v":0},{"$f":"$E$12*H12+$E$11*H11+$E$10*H10+$E$9*H9+$E$8*H8+$E$7*H7+$E$6*H6+$E$5*H5","v":0},0,0,0,0,0,0,0,0,0,0,0,0,0,0,0]
[null,null,"%",{"$f":"SUM(G14:W14)","v":{"$error":"#DIV/0!"}},null,null,{"$f":"G13/$D$13","v":{"$error":"#DIV/0!"}},{"$f":"H13/$D$13","v":{"$error":"#DIV/0!"}},{"$error":"#DIV/0!"},{"$error":"#DIV/0!"},{"$error":"#DIV/0!"},{"$error":"#DIV/0!"},{"$error":"#DIV/0!"},{"$error":"#DIV/0!"},{"$error":"#DIV/0!"},{"$error":"#DIV/0!"},{"$error":"#DIV/0!"},{"$error":"#DIV/0!"},{"$error":"#DIV/0!"},{"$error":"#DIV/0!"},{"$error":"#DIV/0!"},{"$error":"#DIV/0!"},{"$error":"#DIV/0!"}]
["OBSERVAÇÃO:"]
["R - Relatórios a serem entregues como subprodutos"]
["O percentual de cada subproduto varia entre as barragens devido às dimensões da área da ZAS e da população existente na ZAS"]
["Os pagamentos serão realizados de acordo com as entregas e aprovação de cada relatório e atesto da fiscalização do contrato"]
["Todos os relatórios deverão ser entregues no prazo máximo de 12 meses contados a partir da emissão da Ordem de Serviço de cada barragem"]

{"sheet":"CRO1_Pro-Mes","index":3,"n_rows":12,"n_cols":18,"rows_kept":12,"cut":false,"hidden":false,"merged":[[0,0,0,17],[10,0,10,25]]}
["CRONOGRAMA SIMPLIFICADO"]
["Cod.","Produto","Duração estimada (mês)",1,2,3,4,5,6,7,8,9,10,11,12,13,14,15]
["I1","Barragem Bico da Pedra",{"$f":"COUNTA(D3:R3)","v":0}]
["I2","Barragem Boacica",0]
["I3","Barragem Ceraíma",0]
["I4","Barragem Cova da Mandioca",0]
["I5","Barragem Estreito",0]
["I6","Barragem Mirorós",0]
["I7","Barragem Poço do Magro",0]
["I8","Barragem Zabumbão",0]
["OBSERVAÇÃO:"]
["O cronograma poderá ser ajustado para a melhor execução dos serviços"]